bitfinex-derivatives/quotes_BTCF0:USTF0_20250129
["timestamp","ask_amount","ask_price","bid_price","bid_amount"]
[1738136040843,0.66908021,102550.0,102520.0,0.25647413]
[1738136041037,0.26818883,102530.0,102520.0,0.09174613]
[1738136041338,0.555913,102530.0,102520.0,0.09174613]
[1738136041938,0.195113,102530.0,102520.0,0.09174613]
[1738136042138,0.226999,102540.0,102520.0,0.72075396]
[1738136042337,0.6784347,102550.0,102520.0,0.72075396]
[1738136042537,0.002,102530.0,102520.0,0.72075396]
[1738136042742,0.002,102530.0,102520.0,1.0129282]
[1738136043947,0.003,102530.0,102520.0,1.0129282]
[1738136044139,0.001,102530.0,102520.0,1.0139282]
[1738136044547,0.195094,102540.0,102520.0,1.0139282]
[1738136045642,0.195094,102540.0,102530.0,0.195113]
[1738136046138,0.34045457,102540.0,102530.0,0.195113]
[1738136047048,0.34145457,102540.0,102530.0,0.195113]
[1738136047545,0.34345457,102540.0,102530.0,0.195113]
[1738136050648,0.5822364,102540.0,102520.0,0.09174613]
[1738136050846,0.62898883,102530.0,102520.0,0.00014613]
[1738136051044,0.66048883,102530.0,102520.0,0.00014613]
[1738136053154,0.8058494,102530.0,102520.0,0.00014613]
[1738136053846,0.8058494,102530.0,102520.0,0.00114613]
[1738136054353,0.8078494,102530.0,102520.0,0.00014613]
[1738136054554,0.8088494,102530.0,102520.0,0.00014613]
[1738136058557,0.81696805,102530.0,102520.0,0.00014613]
[1738136059855,0.84598307,102530.0,102520.0,0.00014613]
[1738136060960,0.74140724,102530.0,102520.0,0.00014613]
[1738136061360,0.74140724,102530.0,102520.0,0.09574613]
[1738136064862,0.81448307,102530.0,102520.0,0.00014613]
[1738136065058,0.84778307,102530.0,102520.0,0.00014613]
[1738136074668,0.19500274,102520.0,102500.0,0.82184283]
[1738136074967,0.55580274,102520.0,102500.0,0.748767]
[1738136075170,0.19500274,102520.0,102500.0,0.387967]
[1738136075372,0.55580274,102520.0,102500.0,0.748767]
[1738136075868,0.55594887,102520.0,102500.0,0.74891313]
[1738136076071,0.55594887,102520.0,102500.0,0.75191313]
[1738136077571,0.55594887,102520.0,102500.0,0.39111313]
[1738136078477,0.55594887,102520.0,102500.0,0.75191313]
[1738136081979,0.20354874,102510.0,102500.0,0.75191313]
[1738136084578,0.20354874,102510.0,102500.0,0.79990063]
[1738136085684,0.26170553,102510.0,102500.0,0.61435516]
[1738136085883,0.26170553,102510.0,102500.0,0.97515516]
[1738136086181,0.27190071,102510.0,102500.0,0.61435516]
[1738136086770,0.27190071,102510.0,102500.0,0.97515516]
[1738136090082,0.27190071,102510.0,102500.0,0.61435516]
[1738136091184,0.27190071,102510.0,102500.0,0.56636766]
[1738136092789,0.27190071,102510.0,102500.0,0.61435516]
[1738136094088,0.27190071,102510.0,102500.0,0.97515516]
[1738136097093,0.27190071,102510.0,102500.0,0.61435516]
[1738136097285,0.27190071,102510.0,102500.0,0.97515516]
[1738136097481,0.15558714,102510.0,102500.0,1.2088663]
[1738136097882,0.15558714,102510.0,102500.0,0.8480663]
[1738136099590,0.15558714,102510.0,102500.0,1.2088663]
[1738136099993,0.15558714,102510.0,102500.0,0.8480663]
[1738136100885,0.15558714,102510.0,102500.0,1.1608788]
[1738136101085,0.15558714,102510.0,102500.0,1.2088663]
[1738136101383,0.35073814,102510.0,102500.0,1.2088663]
[1738136101696,0.15558714,102510.0,102500.0,1.2088663]
[1738136105796,0.27210117,102510.0,102500.0,1.2088663]
[1738136107190,0.27210117,102510.0,102500.0,0.8480663]
[1738136107396,0.27210117,102510.0,102500.0,1.2088663]
[1738136107896,0.46725217,102510.0,102500.0,1.2088663]
[1738136108096,0.46725217,102510.0,102500.0,1.1608788]
[1738136110199,0.46725217,102510.0,102500.0,1.2088663]
[1738136112694,0.46725217,102510.0,102500.0,1.0136993]
[1738136112900,0.46725217,102510.0,102500.0,0.9657118]
[1738136113095,0.46725217,102510.0,102500.0,1.0136993]
[1738136113595,0.46725217,102510.0,102500.0,0.6528993]
[1738136115596,0.46725217,102510.0,102500.0,0.6049118]
[1738136116002,0.46725217,102510.0,102500.0,0.6528993]
[1738136116205,0.46725217,102510.0,102500.0,0.6049118]
[1738136116503,0.46725217,102510.0,102500.0,0.6528993]
[1738136117295,0.87603967,102510.0,102500.0,0.6049118]
[1738136117500,0.51523967,102510.0,102500.0,0.6049118]
[1738136117900,0.87603967,102510.0,102500.0,0.6049118]
[1738136118603,0.75952564,102510.0,102500.0,0.37120066]
[1738136119009,0.71153814,102510.0,102500.0,0.61435816]
[1738136119197,0.71153814,102510.0,102500.0,0.56637066]
[1738136119506,0.75952564,102510.0,102500.0,0.33920066]
[1738136122306,0.51638714,102510.0,102500.0,0.38718816]
[1738136122609,0.14539196,102510.0,102500.0,1.02294566]
[1738136123810,0.09549196,102510.0,102500.0,1.0609951]
[1738136124008,0.17452172,102520.0,102510.0,0.195151]
[1738136124207,0.17452172,102520.0,102510.0,0.6039385]
[1738136125609,0.17452172,102520.0,102510.0,0.6049385]
[1738136126602,0.17452172,102520.0,102510.0,0.652926]
[1738136128814,0.43437641,102540.0,102530.0,0.195113]
[1738136129112,0.43437641,102540.0,102530.0,0.6039005]
[1738136129506,0.36973625,102550.0,102540.0,0.195094]
[1738136129807,0.36973625,102550.0,102540.0,0.3058815]
[1738136130001,0.17465825,102550.0,102540.0,0.745469]
[1738136130207,0.17465825,102550.0,102540.0,0.6974815]
[1738136131301,0.37273325,102550.0,102540.0,0.6974815]
[1738136131514,0.38073325,102550.0,102540.0,0.6974815]
[1738136132310,0.38073325,102550.0,102540.0,0.4715875]
[1738136132517,0.42872075,102550.0,102540.0,0.4236]
[1738136133107,0.38073325,102550.0,102540.0,0.4715875]
[1738136133517,0.38073325,102550.0,102540.0,0.1107875]
[1738136133710,0.42872075,102550.0,102540.0,0.1107875]
[1738136133904,0.78952075,102550.0,102530.0,0.60403763]
[1738136134109,0.82072075,102550.0,102530.0,0.60403763]
[1738136134503,0.6460625,102550.0,102530.0,1.01272092]
[1738136135217,0.6450625,102550.0,102530.0,1.01272092]
[1738136135611,0.6370625,102550.0,102530.0,1.01272092]
[1738136135811,0.6420625,102550.0,102530.0,1.01272092]
[1738136138222,0.72926509,102550.0,102530.0,0.60403763]
[1738136142321,0.68127759,102550.0,102540.0,0.0479875]
[1738136142527,0.45500259,102550.0,102540.0,0.321169]
[1738136142827,0.45500259,102550.0,102540.0,0.384269]
[1738136143126,0.09420259,102550.0,102540.0,0.384269]
[1738136143323,0.09220259,102550.0,102540.0,0.384269]
[1738136143627,0.09520259,102550.0,102540.0,0.384269]
[1738136144228,0.09820259,102550.0,102540.0,0.384269]
[1738136145427,0.011,102550.0,102540.0,0.384269]
[1738136146428,0.011,102550.0,102540.0,0.745069]
[1738136149131,0.011,102550.0,102540.0,0.6970815]
[1738136149331,0.011,102550.0,102540.0,0.3362815]
[1738136149731,0.011,102550.0,102540.0,0.384269]
[1738136149931,0.011,102550.0,102540.0,0.3362815]
[1738136155532,0.011,102550.0,102540.0,0.6970815]
[1738136156038,0.011,102550.0,102540.0,0.745069]
[1738136156435,0.011,102550.0,102540.0,0.92004115]
[1738136156436,0.09820259,102550.0,102540.0,0.92004115]
[1738136158049,0.09820259,102550.0,102540.0,0.87205365]
[1738136159145,0.29327759,102550.0,102540.0,0.51125365]
[1738136159653,0.40954771,102550.0,102540.0,0.51125365]
[1738136160548,0.81833521,102550.0,102540.0,0.17497215]
[1738136160755,0.85113521,102550.0,102540.0,0.17497215]
[1738136160951,0.93192271,102550.0,102540.0,0.14769997]
[1738136161249,0.88393521,102550.0,102540.0,0.07524006]
[1738136163749,0.93192271,102550.0,102540.0,0.07524006]
[1738136163949,0.7076847,102550.0,102530.0,0.00014613]
[1738136164143,0.683969,102540.0,102530.0,0.00014613]
[1738136164350,0.6359815,102540.0,102530.0,0.00014613]
[1738136165454,0.6409815,102540.0,102530.0,0.00014613]
[1738136165652,0.6429815,102540.0,102530.0,0.00014613]
[1738136167454,0.6108815,102540.0,102530.0,0.00014613]
[1738136167659,0.562894,102540.0,102530.0,0.04813363]
[1738136167858,0.562894,102540.0,102530.0,0.11013363]
[1738136168759,0.67910718,102540.0,102530.0,0.11013363]
[1738136169560,0.72709468,102540.0,102530.0,0.06214613]
[1738136170768,0.75220072,102540.0,102530.0,0.06214613]
[1738136171063,0.67910718,102540.0,102530.0,0.06214613]
[1738136171258,0.69099442,102540.0,102530.0,0.06214613]
[1738136172852,0.77813116,102540.0,102530.0,0.06214613]
[1738136175552,0.8512247,102540.0,102530.0,0.00014613]
[1738136176053,0.8832247,102540.0,102530.0,0.00014613]
[1738136179466,0.16415372,102540.0,102530.0,0.43403967]
[1738136179660,0.16415372,102540.0,102530.0,0.49893967]
[1738136180369,0.1743097,102550.0,102530.0,0.57203321]
[1738136180571,0.1743097,102550.0,102540.0,0.70208108]
[1738136180963,0.0745097,102550.0,102540.0,0.70208108]
[1738136181271,0.20270438,102560.0,102550.0,0.195075]
[1738136181579,0.20270438,102560.0,102550.0,0.67431175]
[1738136182870,0.21370438,102560.0,102550.0,0.67431175]
[1738136183672,0.01114613,102560.0,102550.0,0.67431175]
[1738136184564,0.01114613,102560.0,102550.0,0.70641175]
[1738136190779,0.20620213,102560.0,102550.0,0.01524321]
[1738136191072,0.56700213,102560.0,102550.0,0.01524321]
[1738136191265,0.59700213,102560.0,102550.0,0.01524321]
[1738136191871,0.40194613,102560.0,102550.0,0.01524321]
[1738136192263,0.40194613,102560.0,102550.0,0.08833675]
[1738136192471,0.04114613,102560.0,102550.0,0.64421175]
[1738136194077,0.04114613,102560.0,102550.0,0.57111821]
[1738136195371,0.04114613,102560.0,102550.0,0.555875]
[1738136195677,0.04114613,102560.0,102550.0,0.5711182]
[1738136197082,0.05293594,102560.0,102550.0,0.5711182]
[1738136197277,0.05293594,102560.0,102550.0,0.555875]
[1738136197477,0.05293594,102560.0,102550.0,0.5711182]
[1738136197980,0.05293594,102560.0,102550.0,0.64421174]
[1738136198882,0.05293594,102560.0,102550.0,0.67511174]
[1738136199085,0.04114613,102560.0,102550.0,0.67511174]
[1738136200382,0.04114613,102560.0,102550.0,0.69949965]
[1738136202484,0.39986182,102580.0,102570.0,0.195037]
[1738136202673,0.43016182,102580.0,102570.0,0.5710802]
[1738136202879,0.87586364,102580.0,102570.0,0.0152432]
[1738136203282,0.87585564,102580.0,102570.0,0.01524242]
[1738136203786,0.87585564,102580.0,102570.0,0.01624242]
[1738136204482,0.87585564,102580.0,102570.0,0.001]
[1738136205478,0.2469441,102580.0,102570.0,0.26913054]
[1738136205681,0.2469441,102580.0,102570.0,0.556837]
[1738136205888,0.2469441,102580.0,102570.0,0.196037]
[1738136206976,0.2469441,102580.0,102570.0,0.556837]
[1738136207180,0.2469441,102580.0,102570.0,0.196037]
[1738136208187,0.2469441,102580.0,102570.0,0.26913054]
[1738136208493,0.2469441,102580.0,102570.0,0.62993054]
[1738136208687,0.13073106,102580.0,102570.0,0.66173054]
[1738136209690,0.11892278,102580.0,102570.0,0.66173054]
[1738136210887,0.08862278,102580.0,102570.0,0.66173054]
[1738136211098,0.08862278,102580.0,102570.0,0.69213054]
[1738136211684,0.08862278,102580.0,102570.0,0.76522408]
[1738136212490,0.08715978,102580.0,102570.0,0.80789399]
[1738136212694,0.11635917,102590.0,102580.0,0.195018]
[1738136212903,0.11635917,102590.0,102580.0,0.65991154]
[1738136213087,0.31994268,102590.0,102580.0,0.65991154]
[1738136214104,0.51494168,102590.0,102580.0,0.587818]
[1738136214487,0.51494168,102590.0,102580.0,0.66091154]
[1738136215993,0.31994268,102590.0,102580.0,0.66091154]
[1738136218002,0.00014613,102590.0,102580.0,0.66091154]
[1738136218297,0.0306,102600.0,102590.0,0.194999]
[1738136218493,0.30386778,102610.0,102600.0,0.19498]
[1738136218799,0.30386778,102610.0,102600.0,0.21021595]
[1738136219698,0.31086778,102610.0,102600.0,0.21121629]
[1738136222198,0.31286778,102610.0,102600.0,0.21121629]
[1738136222596,0.0508711,102610.0,102600.0,0.19598]
[1738136224808,0.0392,102610.0,102600.0,0.26907354]
[1738136224997,0.0392,102610.0,102600.0,0.62987354]
[1738136226107,0.0392,102610.0,102600.0,0.55678]
[1738136227701,0.0392,102610.0,102600.0,0.62987354]
[1738136227908,0.009,102610.0,102600.0,0.62987354]
[1738136228108,0.009,102610.0,102600.0,0.66257354]
[1738136230209,0.009,102610.0,102600.0,0.58948]
[1738136231013,0.009,102610.0,102600.0,0.66257354]
[1738136237808,0.203961,102610.0,102600.0,0.58948]
[1738136238014,0.63785454,102610.0,102600.0,0.001]
[1738136238313,0.70255454,102610.0,102600.0,0.001]
[1738136240217,0.81889632,102610.0,102600.0,0.001]
[1738136243410,0.45809632,102610.0,102600.0,0.001]
[1738136243608,1.17969632,102610.0,102600.0,0.001]
[1738136244623,1.38315109,102610.0,102600.0,0.001]
[1738136244819,0.66155109,102610.0,102600.0,0.001]
[1738136245016,1.38315109,102610.0,102600.0,0.001]
[1738136248325,0.66155109,102610.0,102600.0,0.001]
[1738136248520,1.38315109,102610.0,102600.0,0.001]
[1738136253033,0.32879655,102610.0,102600.0,0.43489354]
[1738136253234,0.32879655,102610.0,102600.0,0.66087354]
[1738136256636,0.32879655,102610.0,102600.0,0.30007354]
[1738136256943,0.32879655,102610.0,102600.0,0.66087354]
[1738136258542,0.009,102610.0,102600.0,0.67215998]
[1738136259643,0.009,102610.0,102600.0,0.31135998]
[1738136259844,0.009,102610.0,102600.0,0.67215998]
[1738136263946,0.009,102610.0,102600.0,0.74525352]
[1738136264245,0.009,102610.0,102600.0,0.67215998]
[1738136265040,0.009,102610.0,102600.0,0.74525352]
[1738136265241,0.009,102610.0,102600.0,0.67215998]
[1738136267743,0.009,102610.0,102600.0,0.90587112]
[1738136269744,0.009,102610.0,102600.0,0.97896466]
[1738136269950,0.001,102610.0,102600.0,0.97796466]
[1738136271244,0.001,102610.0,102600.0,0.90487112]
[1738136271550,0.001,102610.0,102600.0,0.67115998]
[1738136271948,0.001,102610.0,102600.0,0.74425352]
[1738136272447,0.001,102610.0,102600.0,0.67115998]
[1738136275450,0.001,102610.0,102600.0,0.59806644]
[1738136275451,0.26907354,102610.0,102600.0,0.59806644]
[1738136275647,0.66137354,102610.0,102600.0,0.23371114]
[1738136278954,0.80702844,102610.0,102590.0,0.26825367]
[1738136279156,0.3608,102600.0,102590.0,0.26825367]
[1738136279356,0.3909,102600.0,102590.0,0.19516013]
[1738136280057,0.3909,102600.0,102590.0,0.19616013]
[1738136280550,0.3909,102600.0,102590.0,0.19816013]
[1738136280752,0.3909,102600.0,102590.0,0.19716013]
[1738136280952,0.3909,102600.0,102590.0,0.19816013]
[1738136281960,0.3909,102600.0,102590.0,0.27125367]
[1738136282261,0.0301,102600.0,102590.0,0.27125367]
[1738136283355,0.0301,102600.0,102590.0,0.63205367]
[1738136283561,0.14655696,102600.0,102590.0,0.63205367]
[1738136283965,0.11645696,102600.0,102590.0,0.63205367]
[1738136284161,0.11645696,102600.0,102590.0,0.66295367]
[1738136287162,0.34293696,102610.0,102590.0,0.8767952]
[1738136287362,0.34293696,102610.0,102600.0,0.62889254]
[1738136287552,0.34293696,102610.0,102600.0,0.555799]
[1738136288665,0.5828505,102610.0,102590.0,0.5139952]
[1738136288966,0.555799,102600.0,102590.0,0.60501666]
[1738136289157,0.586899,102600.0,102590.0,0.60501666]
[1738136289357,0.619499,102600.0,102590.0,0.60501666]
[1738136290162,0.619499,102600.0,102590.0,0.60701666]
[1738136291559,0.73595596,102600.0,102590.0,0.19816113]
[1738136291962,0.73595596,102600.0,102590.0,0.00314613]
[1738136294372,0.8090495,102600.0,102590.0,0.00314613]
[1738136297573,0.81956038,102600.0,102590.0,0.00314613]
[1738136298672,0.74646684,102600.0,102590.0,0.00314613]
[1738136300165,0.77566478,102600.0,102590.0,0.00314613]
[1738136302664,0.84875832,102600.0,102590.0,0.00314613]
[1738136303273,0.77566478,102600.0,102590.0,0.00314613]
[1738136303769,0.84875832,102600.0,102590.0,0.00314613]
[1738136304165,0.195029,102590.0,102570.0,0.40219539]
[1738136304365,0.3608,102580.0,102570.0,0.40219539]
[1738136304868,0.3608,102580.0,102570.0,0.47528893]
[1738136305774,0.3608,102580.0,102570.0,0.47828893]
[1738136306174,0.3608,102580.0,102570.0,0.48628893]
[1738136306761,0.3618,102580.0,102570.0,0.48628893]
[1738136307277,0.001,102580.0,102570.0,0.48628893]
[1738136307478,0.3618,102580.0,102570.0,0.48628893]
[1738136308178,0.001,102580.0,102570.0,0.84708893]
[1738136308366,0.001,102580.0,102570.0,0.51888893]
[1738136308774,0.001,102580.0,102570.0,0.87968893]
[1738136308970,0.001,102580.0,102570.0,0.48628893]
[1738136309275,0.196037,102580.0,102570.0,0.48628893]
[1738136310173,0.001,102580.0,102570.0,0.48628893]
[1738136313975,0.001,102580.0,102570.0,0.51958893]
[1738136314664,0.001,102580.0,102570.0,0.88038893]
[1738136314871,0.001,102580.0,102570.0,0.51958893]
[1738136315072,0.001,102580.0,102570.0,0.88038893]
[1738136320581,0.001,102580.0,102570.0,0.8552106]
[1738136320973,0.001,102580.0,102570.0,0.91377735]
[1738136324678,0.001,102580.0,102570.0,1.47914718]
[1738136328577,0.11746663,102580.0,102570.0,1.24543604]
[1738136328778,0.11746663,102580.0,102570.0,1.29335125]
[1738136328976,0.14580103,102590.0,102570.0,1.6487559]
[1738136329174,0.14580103,102590.0,102580.0,0.68346742]
[1738136330485,0.14580103,102590.0,102580.0,0.68846742]
[1738136332377,0.00014613,102590.0,102580.0,1.25383725]
[1738136333486,0.00014613,102590.0,102580.0,1.25583725]
[1738136333989,0.00014613,102590.0,102580.0,1.34515725]
[1738136335882,0.08758316,102590.0,102580.0,1.3056826]
[1738136336284,0.08758316,102590.0,102580.0,1.31613867]
[1738136337384,0.11888316,102590.0,102580.0,1.17890346]
[1738136337895,0.14888316,102590.0,102580.0,1.17890346]
[1738136339082,0.14888316,102590.0,102580.0,1.22681867]
[1738136340485,0.14888316,102590.0,102580.0,1.10990847]
[1738136343487,0.14888316,102590.0,102580.0,0.74910847]
[1738136347791,0.11888316,102590.0,102580.0,0.74910847]
[1738136349495,0.12933193,102590.0,102580.0,0.7386524]
[1738136350999,0.11888316,102590.0,102580.0,0.7386524]
[1738136352295,0.11888316,102590.0,102580.0,1.0994524]
[1738136352492,0.08758316,102590.0,102580.0,1.0994524]
[1738136355097,0.08758316,102590.0,102580.0,1.10967396]
[1738136355995,0.08758316,102590.0,102580.0,0.93440992]
[1738136358299,0.08758316,102590.0,102580.0,1.34312513]
[1738136358502,0.08758316,102590.0,102580.0,1.38119175]
[1738136358697,0.1456549,102600.0,102580.0,1.43830638]
[1738136358901,0.1456549,102600.0,102590.0,0.71294842]
[1738136359303,0.1456549,102600.0,102590.0,0.86334146]
[1738136360090,0.1456549,102600.0,102590.0,0.86534146]
[1738136360295,0.1456549,102600.0,102590.0,0.82727484]
[1738136360495,0.1456549,102600.0,102590.0,0.8773717]
[1738136360696,0.1456549,102600.0,102590.0,0.91541697]
[1738136361105,0.1456549,102600.0,102590.0,0.55461697]
[1738136361307,0.1456549,102600.0,102590.0,0.8773717]
[1738136361804,0.1456549,102600.0,102590.0,0.80440806]
[1738136362109,0.1456549,102600.0,102590.0,0.80540806]
[1738136362802,0.03124613,102610.0,102600.0,0.194999]
[1738136362994,0.03124613,102610.0,102600.0,0.62876264]
[1738136364099,0.03224613,102610.0,102600.0,0.62876264]
[1738136364794,0.00114613,102610.0,102600.0,0.70172628]
[1738136365401,0.00114613,102610.0,102600.0,0.73472628]
[1738136366709,0.00114613,102610.0,102600.0,0.66176264]
[1738136367004,0.00114613,102610.0,102600.0,0.73472628]
[1738136367209,0.00114613,102610.0,102600.0,0.90977642]
[1738136367914,0.00114613,102610.0,102600.0,0.83681278]
[1738136368208,0.00114613,102610.0,102600.0,0.92026738]
[1738136369013,0.00114613,102610.0,102600.0,0.84730374]
[1738136369311,0.00114613,102610.0,102600.0,0.48650374]
[1738136369508,0.00114613,102610.0,102600.0,0.84730374]
[1738136370110,0.00114613,102610.0,102600.0,0.81430374]
[1738136370511,0.00114613,102610.0,102600.0,0.45350374]
[1738136379612,0.00114613,102610.0,102600.0,0.52646738]
[1738136380519,0.00114613,102610.0,102600.0,0.476309]
[1738136388725,0.00114613,102610.0,102600.0,0.70970919]
[1738136392126,0.19612613,102610.0,102600.0,0.70970919]
[1738136393023,0.31300585,102610.0,102600.0,1.09553267]
[1738136393727,0.67380585,102610.0,102600.0,0.84215826]
[1738136393914,0.67380585,102610.0,102600.0,0.79427381]
[1738136394117,0.7536903,102610.0,102600.0,0.84215826]
[1738136394923,0.7536903,102610.0,102600.0,0.79427381]
[1738136397322,1.1144903,102610.0,102600.0,0.84215826]
[1738136398628,1.17175223,102610.0,102600.0,0.04788445]
[1738136399133,0.194999,102600.0,102590.0,0.65166905]
[1738136399325,0.618899,102600.0,102590.0,0.65166905]
[1738136400330,0.618899,102600.0,102590.0,0.65366905]
[1738136401218,0.618899,102600.0,102590.0,0.65466905]
[1738136403933,0.73553385,102600.0,102590.0,0.42126886]
[1738136407042,0.73553385,102600.0,102590.0,0.24590045]
[1738136407725,0.37473385,102600.0,102590.0,0.24590045]
[1738136407929,0.73553385,102600.0,102590.0,0.24590045]
[1738136409235,0.74580858,102600.0,102590.0,0.24590045]
[1738136410131,0.79369303,102600.0,102590.0,0.003]
[1738136410434,0.84157748,102600.0,102590.0,0.003]
[1738136410634,0.195018,102590.0,102580.0,0.40891473]
[1738136410935,0.63400245,102590.0,102580.0,0.40891473]
[1738136411734,0.63400245,102590.0,102580.0,0.41091473]
[1738136412422,0.63400245,102590.0,102580.0,0.41591473]
[1738136412629,0.6591609,102590.0,102580.0,0.18251454]
[1738136415636,0.586118,102590.0,102580.0,0.18251454]
[1738136416228,0.6591609,102590.0,102580.0,0.18251454]
[1738136417238,0.586118,102590.0,102580.0,0.45059444]
[1738136417439,0.81824642,102590.0,102580.0,0.27522603]
[1738136418540,0.62322842,102590.0,102580.0,0.27522603]
[1738136419437,0.26242842,102590.0,102580.0,0.27522603]
[1738136420738,0.86090215,102600.0,102580.0,0.27522603]
[1738136421737,0.86090215,102600.0,102590.0,0.195018]
[1738136422347,0.93394505,102600.0,102580.0,0.27522303]
[1738136422540,0.3608,102590.0,102580.0,0.27522303]
[1738136422747,0.555818,102590.0,102580.0,0.20018013]
[1738136422938,0.555818,102590.0,102580.0,0.27022303]
[1738136423545,0.555818,102590.0,102580.0,0.26822303]
[1738136423747,0.555818,102590.0,102580.0,0.27522303]
[1738136424647,0.555818,102590.0,102580.0,0.08018903]
[1738136424848,0.588618,102590.0,102580.0,0.00714613]
[1738136426244,0.3608,102590.0,102580.0,0.27522603]
[1738136427452,0.67245285,102590.0,102580.0,0.27522603]
[1738136434551,0.67245285,102590.0,102580.0,0.25009705]
[1738136438050,0.70525285,102590.0,102580.0,0.25009705]
[1738136439760,0.47743485,102590.0,102580.0,0.29801097]
[1738136442663,0.47743485,102590.0,102580.0,0.27519274]
[1738136443355,0.47743485,102590.0,102580.0,0.45056115]
[1738136446455,0.11663485,102590.0,102580.0,0.45056115]
[1738136446759,0.47743485,102590.0,102580.0,0.45056115]
[1738136449854,0.47743485,102590.0,102580.0,0.68396134]
[1738136453669,0.47743485,102590.0,102580.0,0.80076717]
[1738136455465,0.11663485,102590.0,102580.0,0.80076717]
[1738136457671,0.11663485,102590.0,102580.0,0.50859293]
[1738136461469,0.11663485,102590.0,102580.0,0.86939293]
[1738136465071,0.11663485,102590.0,102580.0,0.89218888]
[1738136470071,0.88243442,102600.0,102590.0,0.195018]
[1738136470274,0.88243442,102600.0,102590.0,0.24292078]
[1738136471172,0.88243442,102600.0,102590.0,0.24392078]
[1738136471473,0.88243442,102600.0,102590.0,0.24592078]
[1738136473574,0.73664085,102600.0,102590.0,0.42130208]
[1738136480373,0.37584085,102600.0,102590.0,0.42130208]
[1738136480574,0.73664085,102600.0,102590.0,0.42130208]
[1738136482279,0.73664085,102600.0,102590.0,0.43102021]
[1738136485277,0.37584085,102600.0,102590.0,0.43102021]
[1738136485971,0.73664085,102600.0,102590.0,0.43102021]
[1738136486477,0.88243442,102600.0,102590.0,0.43102021]
[1738136487171,0.88243442,102600.0,102590.0,0.42130208]
[1738136491283,0.88243442,102600.0,102590.0,0.65470227]
[1738136491675,0.52163442,102600.0,102590.0,0.65470227]
[1738136491878,0.88243442,102600.0,102590.0,0.65470227]
[1738136495376,0.76579957,102600.0,102590.0,0.65470227]
[1738136501888,0.76579957,102600.0,102590.0,0.60679949]
[1738136502079,0.76579957,102600.0,102590.0,0.41178149]
[1738136502285,0.81370235,102600.0,102590.0,0.41178149]
[1738136502793,0.76579957,102600.0,102590.0,0.45968427]
[1738136507584,0.93994122,102600.0,102590.0,0.05090278]
[1738136510694,0.76579957,102600.0,102590.0,0.05090278]
[1738136511595,0.76579957,102600.0,102590.0,0.24592078]
[1738136511784,0.57079357,102600.0,102590.0,0.24592078]
[1738136514697,0.68735681,102600.0,102590.0,0.42130208]
[1738136515288,0.88235581,102600.0,102590.0,0.42130208]
[1738136517999,0.76579257,102600.0,102590.0,0.42130208]
[1738136519703,0.57079357,102600.0,102590.0,0.42130208]
[1738136520096,0.57079357,102600.0,102590.0,0.45280208]
[1738136522706,0.20999357,102600.0,102590.0,0.45280208]
[1738136522909,0.57079357,102600.0,102590.0,0.45280208]
[1738136523497,0.81369535,102600.0,102590.0,0.3733993]
[1738136525507,0.76579257,102600.0,102590.0,0.3733993]
[1738136526095,0.76579257,102600.0,102590.0,0.42130208]
[1738136527208,0.619999,102600.0,102590.0,0.24592078]
[1738136528406,0.425,102600.0,102590.0,0.24592078]
[1738136528908,0.68720616,102600.0,102590.0,0.42134017]
[1738136536011,0.68720616,102600.0,102590.0,0.37343739]
[1738136536210,0.93010794,102600.0,102590.0,0.37343739]
[1738136537319,0.88220516,102600.0,102590.0,0.37343739]
[1738136537507,0.93010794,102600.0,102590.0,0.37343739]
[1738136537819,0.88220516,102600.0,102590.0,0.37343739]
[1738136538716,0.88220516,102600.0,102590.0,0.42134017]
[1738136539517,0.76566909,102600.0,102590.0,0.42134017]
[1738136546728,0.76566909,102600.0,102590.0,0.37343739]
[1738136547018,0.76566909,102600.0,102590.0,0.42134017]
[1738136547814,0.76566909,102600.0,102590.0,0.37343739]
[1738136548320,0.81357187,102600.0,102590.0,0.37343739]
[1738136554524,0.45277187,102600.0,102590.0,0.37343739]
[1738136554718,0.81357187,102600.0,102590.0,0.37343739]
[1738136558930,0.45277187,102600.0,102590.0,0.37343739]
[1738136559127,0.81357187,102600.0,102590.0,0.37343739]
[1738136560432,0.98837598,102600.0,102590.0,0.198018]
[1738136562323,0.98837598,102600.0,102590.0,0.003]
[1738136562524,1.03627876,102600.0,102590.0,0.003]
[1738136567637,0.71580456,102600.0,102590.0,0.003]
[1738136571243,0.85592872,102600.0,102590.0,0.003]
[1738136571646,1.21672872,102600.0,102590.0,0.003]
[1738136572147,0.49512872,102600.0,102590.0,0.003]
[1738136572445,1.21672872,102600.0,102590.0,0.003]
[1738136572645,0.49512872,102600.0,102590.0,0.003]
[1738136572836,1.21672872,102600.0,102590.0,0.003]
[1738136573037,0.49512872,102600.0,102590.0,0.003]
[1738136573232,1.21672872,102600.0,102590.0,0.003]
[1738136576534,1.28054269,102600.0,102590.0,0.003]
[1738136576740,1.23263991,102600.0,102590.0,0.05090278]
[1738136576952,1.23263991,102600.0,102590.0,0.003]
[1738136578659,1.28054269,102600.0,102590.0,0.003]
[1738136579353,1.25113784,102600.0,102590.0,0.003]
[1738136581160,1.20323506,102600.0,102590.0,0.003]
[1738136581761,0.92853328,102600.0,102590.0,0.24592078]
[1738136581963,0.92853328,102600.0,102590.0,0.30802078]
[1738136583758,0.97643606,102600.0,102590.0,0.30802078]
[1738136585061,0.61563606,102600.0,102590.0,0.30802078]
[1738136585261,0.17453328,102600.0,102590.0,0.71672356]
[1738136585559,0.17453328,102600.0,102590.0,0.82572356]
[1738136585765,0.26187543,102600.0,102590.0,0.63070556]
[1738136586065,0.26187543,102600.0,102590.0,0.82572356]
[1738136586454,0.26187543,102600.0,102590.0,0.83583719]
[1738136590066,0.08736379,102610.0,102600.0,0.194999]
[1738136590265,0.08736379,102610.0,102600.0,0.29080456]
[1738136591564,0.08836379,102610.0,102600.0,0.29080456]
[1738136593971,0.00114613,102610.0,102600.0,0.29080456]
[1738136596065,0.00114613,102610.0,102600.0,0.24290178]
[1738136596467,0.00114613,102610.0,102600.0,0.29080456]
[1738136598075,0.00114613,102610.0,102600.0,0.65160456]
[1738136598270,0.00114613,102610.0,102600.0,0.29080456]
[1738136598470,0.00114613,102610.0,102600.0,0.65160456]
[1738136610487,0.00114613,102610.0,102600.0,0.82702395]
[1738136614491,0.00114613,102610.0,102600.0,1.06091647]
[1738136615985,0.00114613,102610.0,102600.0,1.20628038]
[1738136618980,0.00114613,102610.0,102600.0,1.1583776]
[1738136619297,0.00114613,102610.0,102600.0,1.64974704]
[1738136619494,0.00114613,102610.0,102600.0,1.68783619]
[1738136621686,0.00114613,102610.0,102600.0,2.04863619]
[1738136622706,0.00114613,102610.0,102600.0,1.6977974]
[1738136623198,0.00114613,102610.0,102600.0,1.74570018]
[1738136624394,0.00114613,102610.0,102600.0,1.6977974]